bitfinex/quotes_SOLUSD_20251216
["timestamp","ask_amount","ask_price","bid_price","bid_amount"]
[1765909740806,0.72,127.29,127.26,9.3]
[1765909741118,0.72,127.29,127.22,7.86016968]
[1765909741119,0.72,127.26,127.22,0.68]
[1765909741322,0.72,127.24,127.23,8.62]
[1765909741727,8.57916378,127.24,127.23,8.62]
[1765909742636,28.22707324,127.24,127.23,8.62]
[1765909743631,34.85244935,127.24,127.23,8.62]
[1765909743803,34.13244935,127.24,127.19,7.86213117]
[1765909744004,0.7,127.22,127.2,8.62]
[1765909744226,0.7,127.22,127.18,0.69]
[1765909744444,0.7,127.22,127.21,8.62]
[1765909744637,7.32537611,127.23,127.21,8.62]
[1765909744832,0.7,127.22,127.21,8.62]
[1765909745722,7.86101721,127.21,127.19,0.69]
[1765909745919,7.86101721,127.21,127.2,8.62]
[1765909746730,0.7,127.2,127.16,0.69]
[1765909746938,34.13893635,127.21,127.16,8.62]
[1765909746939,7.32537611,127.19,127.16,8.62]
[1765909747229,7.32537611,127.19,127.16,9.31]
[1765909747433,6.62537611,127.19,127.16,9.31]
[1765909747636,7.32537611,127.19,127.16,9.31]
[1765909747813,7.86287152,127.18,127.16,9.31]
[1765909748426,7.86287152,127.18,127.16,8.62]
[1765909748733,7.86287152,127.18,127.17,0.69]
[1765909749941,7.86163522,127.2,127.17,0.69]
[1765909751334,7.8613039,127.21,127.18,0.69]
[1765909751527,7.8613039,127.21,127.19,9.31]
[1765909751839,8.5613039,127.21,127.19,8.62]
[1765909752342,7.8613039,127.21,127.19,9.31]
[1765909752538,7.8613039,127.21,127.2,0.69]
[1765909752721,7.8613039,127.21,127.19,9.31]
[1765909756048,8.56069943,127.22,127.19,9.31]
[1765909756953,7.86069943,127.22,127.2,0.69]
[1765909757538,8.56069943,127.22,127.19,9.31]
[1765909758830,7.86069943,127.22,127.2,9.31]
[1765909759136,0.7,127.24,127.21,0.69]
[1765909759137,7.85948404,127.24,127.21,0.69]
[1765909761631,28.2073935,127.24,127.2,0.69]
[1765909761862,30.67845585,127.24,127.21,8.62]
[1765909762154,28.2073935,127.24,127.21,9.31]
[1765909763560,30.67845585,127.24,127.21,9.31]
[1765909763942,2.47106235,127.23,127.21,9.31]
[1765909764261,30.67845585,127.24,127.21,0.69]
[1765909764557,3.17106235,127.23,127.22,8.62]
[1765909764737,2.47106235,127.23,127.22,8.62]
[1765909765153,10.33084384,127.23,127.22,8.62]
[1765909765870,7.85935337,127.24,127.22,8.62]
[1765909766036,7.85935337,127.24,127.23,8.62]
[1765909766644,8.55935337,127.24,127.23,8.62]
[1765909774086,7.85935337,127.24,127.23,8.62]
[1765909776866,8.53935337,127.24,127.23,8.62]
[1765909777679,7.85935337,127.24,127.23,9.32]
[1765909778183,8.53935337,127.24,127.23,8.62]
[1765909779088,7.85854616,127.25,127.23,9.32]
[1765909780690,8.53854616,127.25,127.23,9.32]
[1765909781586,7.85854616,127.25,127.23,9.32]
[1765909783100,31.36506529,127.25,127.23,8.62]
[1765909783388,3.86015371,127.24,127.23,8.62]
[1765909784495,7.85978149,127.23,127.22,0.7]
[1765909784671,7.85978149,127.23,127.22,9.32]
[1765909784870,7.85978149,127.23,127.22,0.7]
[1765909785065,7.85978149,127.23,127.22,9.32]
[1765909785285,7.85978149,127.23,127.22,0.7]
[1765909785474,7.85978149,127.23,127.22,9.32]
[1765909785785,7.85916378,127.24,127.22,9.32]
[1765909786290,32.04722695,127.24,127.17,19.65825684]
[1765909786496,3.86015371,127.23,127.19,0.7]
[1765909786682,32.04722695,127.24,127.2,0.7]
[1765909786886,31.36722695,127.24,127.2,0.7]
[1765909787185,0.68,127.23,127.21,8.62]
[1765909787403,31.36722695,127.24,127.21,9.32]
[1765909787696,32.04722695,127.24,127.21,9.32]
[1765909787902,4.54015371,127.24,127.21,9.32]
[1765909790202,7.85978149,127.23,127.21,9.32]
[1765909791700,7.85978149,127.23,127.22,0.7]
[1765909792701,8.53916378,127.24,127.21,9.32]
[1765909792906,7.85916378,127.24,127.22,0.7]
[1765909793500,7.85916378,127.24,127.21,8.62]
[1765909793698,8.53916378,127.24,127.21,9.32]
[1765909793893,8.53916378,127.24,127.21,8.62]
[1765909794102,8.53916378,127.24,127.22,0.7]
[1765909795691,7.85916378,127.24,127.22,0.7]
[1765909798610,33.94157578,127.27,127.23,0.7]
[1765909798915,0.68,127.24,127.23,8.62]
[1765909799595,4.54015371,127.25,127.23,8.62]
[1765909799795,4.54095454,127.25,127.23,8.62]
[1765909800694,7.85916378,127.24,127.23,8.62]
[1765909802004,7.85840023,127.26,127.24,0.7]
[1765909802197,8.53840023,127.26,127.23,9.32]
[1765909802514,0.68,127.25,127.23,8.62]
[1765909802809,7.85916378,127.24,127.23,8.62]
[1765909803013,7.85916378,127.24,127.23,9.32]
[1765909804111,7.85916378,127.24,127.21,7.86094224]
[1765909804412,7.85916378,127.24,127.22,9.34]
[1765909804913,10.43767296,127.27,127.22,8.62]
[1765909805212,7.85792865,127.26,127.23,0.72]
[1765909806911,7.85792865,127.26,127.23,7.85961092]
[1765909807102,7.85792865,127.26,127.24,0.72]
[1765909807312,7.85792865,127.26,127.25,9.34]
[1765909807502,7.85792865,127.26,127.25,8.62]
[1765909807715,7.85792865,127.26,127.25,9.34]
[1765909808031,7.85749484,127.27,127.25,9.34]
[1765909808520,7.85607667,127.29,127.26,0.72]
[1765909808721,7.8556789,127.3,127.26,0.72]
[1765909809020,12.41600751,127.31,127.27,0.72]
[1765909809226,8.55505297,127.31,127.28,9.34]
[1765909809527,43.56131651,127.34,127.28,9.34]
[1765909809528,3.86095454,127.33,127.29,0.72]
[1765909809705,0.7,127.32,127.29,0.72]
[1765909810315,11.71474022,127.33,127.3,0.72]
[1765909810500,20.53354328,127.34,127.31,9.34]
[1765909810501,12.61423438,127.34,127.31,9.34]
[1765909810690,0.2,127.34,127.32,0.72]
[1765909812189,8.05300234,127.34,127.32,0.72]
[1765909812394,8.75300234,127.34,127.33,8.62]
[1765909812620,8.05300234,127.34,127.33,8.62]
[1765909813907,0.7,127.33,127.3,8.57517533]
[1765909814206,12.41477978,127.33,127.3,0.72]
[1765909814412,0.7,127.32,127.31,8.62]
[1765909814612,12.41477978,127.33,127.31,8.62]
[1765909814996,0.2,127.34,127.31,8.62]
[1765909815202,0.2,127.34,127.33,0.72]
[1765909816635,0.2,127.34,127.33,8.57360873]
[1765909819848,0.2,127.34,127.33,0.72]
[1765909820458,0.2,127.34,127.33,8.57360873]
[1765909822050,0.2,127.34,127.33,12.43456327]
[1765909822215,0.2,127.34,127.33,21.24450819]
[1765909822641,1e-08,127.34,127.33,31.68218115]
[1765909822847,1e-08,127.34,127.33,21.24450819]
[1765909823146,1e-08,127.34,127.33,17.38355365]
[1765909823320,1e-08,127.34,127.33,21.24450819]
[1765909823528,1e-08,127.34,127.33,29.86450819]
[1765909824343,1e-08,127.34,127.33,21.24450819]
[1765909824528,1e-08,127.34,127.33,29.86450819]
[1765909825437,1e-08,127.34,127.33,36.44122661]
[1765909825632,1e-08,127.34,127.33,40.30218115]
[1765909826060,1e-08,127.34,127.33,36.44122661]
[1765909826345,1e-08,127.34,127.33,40.30218115]
[1765909826763,1e-08,127.34,127.33,29.86450819]
[1765909831258,1e-08,127.34,127.33,40.28218115]
[1765909836744,1e-08,127.34,127.33,92.42986906]
[1765909837060,1e-08,127.35,127.34,9.52994492]
[1765909837261,0.2,127.37,127.36,19.96761788]
[1765909837561,0.2,127.39,127.38,0.72]
[1765909837763,0.2,127.39,127.38,17.04190908]
[1765909838370,0.2,127.42,127.41,27.81629537]
[1765909838539,0.2,127.42,127.41,40.27724991]
[1765909841366,0.2,127.42,127.41,38.8775916]
[1765909842355,0.2,127.47,127.45,0.72]
[1765909842555,0.2,127.47,127.46,11.06129623]
[1765909843143,0.9,127.47,127.46,11.06129623]
[1765909843376,0.9,127.47,127.46,18.90689484]
[1765909843562,0.2,127.47,127.46,18.90689484]
[1765909843762,0.2,127.47,127.46,27.71683976]
[1765909844155,0.2,127.47,127.46,25.97554353]
[1765909844356,0.2,127.47,127.46,27.71683976]
[1765909845073,0.2,127.47,127.46,28.43683976]
[1765909852857,0.2,127.47,127.46,16.65554353]
[1765909853064,0.2,127.47,127.46,27.71683976]
[1765909853259,0.2,127.47,127.46,28.43683976]
[1765909854656,22.0651567,127.53,127.47,8.80994492]
[1765909854978,19.60386047,127.53,127.49,2.46129623]
[1765909855172,19.60386047,127.53,127.5,8.6]
[1765909855683,27.44515271,127.53,127.51,8.6]
[1765909856881,0.7,127.52,127.51,8.6]
[1765909857795,8.54190715,127.52,127.51,8.6]
[1765909860284,0.7,127.52,127.51,8.6]
[1765909861193,0.7,127.52,127.5,10.30430562]
[1765909861374,0.7,127.52,127.51,8.6]
[1765909861576,0.7,127.52,127.51,16.44252215]
[1765909861784,0.7,127.55,127.51,18.90381838]
[1765909861979,0.7,127.55,127.53,2.46129623]
[1765909862291,0.7,127.55,127.54,8.6]
[1765909862706,11.13767296,127.55,127.54,8.6]
[1765909864192,0.66,127.56,127.54,18.90197366]
[1765909864692,0.66,127.59,127.56,9.47994492]
[1765909864874,0.86,127.6,127.58,2.46129623]
[1765909865288,0.66,127.59,127.58,2.46129623]
[1765909865593,0.66,127.59,127.57,11.06129623]
[1765909866295,0.66,127.59,127.58,8.6]
[1765909866483,0.86,127.6,127.58,11.06129623]
[1765909866686,0.2,127.6,127.59,2.46129623]
[1765909866993,0.2,127.6,127.59,3.13129623]
[1765909867378,0.2,127.6,127.59,11.94124115]
[1765909867886,0.86,127.6,127.59,8.80994492]
[1765909868086,0.86,127.6,127.59,18.89890105]
[1765909868291,0.2,127.6,127.59,28.37884597]
[1765909870879,0.2,127.6,127.59,10.29296795]
[1765909871101,0.2,127.6,127.59,27.70291287]
[1765909871297,0.2,127.6,127.59,28.37291287]
[1765909871490,0.2,127.6,127.59,19.56296795]
[1765909871692,0.2,127.6,127.59,28.37291287]
[1765909872183,0.2,127.6,127.59,25.91754974]
[1765909872389,0.2,127.6,127.59,28.37291287]
[1765909872681,4.29473014,127.7,127.62,19.24761788]
[1765909873004,0.2,127.72,127.7,10.43767296]
[1765909873205,0.2,127.72,127.7,30.30298101]
[1765909873378,0.2,127.72,127.71,19.86530805]
[1765909873577,0.86,127.74,127.71,46.40192593]
[1765909873578,0.2,127.74,127.71,46.40192593]
[1765909873782,0.2,127.74,127.73,2.45536313]
[1765909873996,0.2,127.74,127.73,11.26530805]
[1765909874212,0.2,127.75,127.74,7.82840144]
[1765909874399,0.66,127.78,127.74,30.14907262]
[1765909874603,0.66,127.78,127.77,2.45536313]
[1765909874793,7.82166601,127.85,127.78,8.80994492]
[1765909874985,18.25933897,127.85,127.78,8.80994492]
[1765909875186,18.25933897,127.85,127.81,2.45536313]
[1765909875417,18.25933897,127.85,127.82,8.6]
[1765909875589,7.82166601,127.85,127.82,8.6]
[1765909875912,4.08967514,127.87,127.82,15.15530716]
[1765909876117,7.81921964,127.89,127.84,6.55530716]
[1765909876415,7.81921964,127.89,127.85,15.15530716]
[1765909876640,7.81738586,127.92,127.85,8.6]
[1765909876915,0.66,127.88,127.81,0.67]
[1765909877097,0.66,127.87,127.82,8.58]
[1765909877492,0.66,127.87,127.82,16.40350059]
[1765909877690,6.55530716,127.89,127.83,12.2486521]
[1765909877904,6.55530716,127.89,127.84,5.69334494]
[1765909878118,19.52865955,127.92,127.85,14.27334494]
[1765909878411,6.55530716,127.89,127.86,14.27334494]
[1765909878621,6.55530716,127.88,127.87,8.58]
[1765909878819,6.55530716,127.88,127.86,8.58]
[1765909878993,6.55530716,127.89,127.86,8.58]
[1765909879203,27.34604541,127.92,127.86,8.58]
[1765909879521,6.55530716,127.93,127.88,6.55530716]
[1765909879693,0.66,127.9,127.89,14.25118637]
[1765909880410,8.47860828,127.9,127.89,14.25118637]
[1765909880796,0.66,127.9,127.89,14.25118637]
[1765909880987,8.47860828,127.9,127.89,14.25118637]
[1765909881189,0.66,127.91,127.89,14.25118637]
[1765909881390,0.66,127.91,127.9,5.67118637]
[1765909882412,0.66,127.91,127.89,8.58]
[1765909883119,0.66,127.91,127.9,5.65015776]
[1765909883414,0.66,127.91,127.89,8.58]
[1765909883809,0.66,127.93,127.89,23.62428303]
[1765909884122,0.66,127.92,127.9,5.64314305]
[1765909884302,7.81767896,127.92,127.9,8.58]
[1765909884504,0.66,127.91,127.9,8.58]
[1765909884705,0.66,127.91,127.88,6.55530716]
[1765909884903,0.66,127.91,127.89,5.63848548]
[1765909885208,0.66,127.89,127.81,19.55940602]
[1765909885520,0.66,127.85,127.83,5.63710074]
[1765909885718,0.66,127.84,127.83,8.58]
[1765909885892,0.66,127.84,127.78,0.67]
[1765909885893,0.66,127.83,127.82,8.58]
[1765909887928,7.82180173,127.85,127.82,8.58]
[1765909888223,0.66,127.84,127.82,8.58]
[1765909888424,0.66,127.86,127.82,16.40344995]
[1765909888594,0.66,127.86,127.82,22.95875711]
[1765909889119,0.66,127.86,127.82,16.40344995]
[1765909889318,14.37526039,127.88,127.83,16.03525208]
[1765909889518,0.66,127.88,127.85,8.80994492]
[1765909889723,0.66,127.89,127.86,8.58]
[1765909889924,0.66,127.89,127.86,15.13530716]
[1765909890520,0.66,127.89,127.86,22.95631605]
[1765909890719,7.81815995,127.91,127.86,22.95631605]
[1765909890921,0.66,127.9,127.86,16.40100889]
[1765909891122,0.66,127.89,127.87,8.58]
[1765909891525,0.66,127.89,127.88,8.58]
[1765909892632,8.47921964,127.89,127.88,8.58]
[1765909893338,0.66,127.89,127.88,8.58]
[1765909893522,8.47921964,127.89,127.88,8.58]
[1765909893723,15.0345268,127.89,127.88,8.58]
[1765909893919,8.47921964,127.89,127.88,8.58]
[1765909894124,15.0345268,127.89,127.85,8.53126924]
[1765909894322,15.0345268,127.89,127.86,8.58]
[1765909894650,0.71,127.87,127.86,8.58]
[1765909895135,8.53044263,127.87,127.86,8.58]
[1765909895536,8.53004778,127.88,127.86,8.58]
[1765909895742,0.71,127.88,127.86,16.40100908]
[1765909895943,0.71,127.88,127.86,8.58]
[1765909896237,0.71,127.87,127.82,16.06525208]
[1765909896436,0.71,127.87,127.83,15.83530716]
[1765909896624,0.71,127.87,127.84,7.82225427]
[1765909897012,0.71,127.87,127.84,8.52225427]
[1765909897212,0.71,127.88,127.84,8.52225427]
[1765909898744,0.71,127.88,127.85,8.58]
[1765909898942,8.53017974,127.88,127.85,8.58]
[1765909901918,0.71,127.87,127.85,8.58]
[1765909902326,0.71,127.87,127.84,7.82209595]
[1765909902528,0.71,127.87,127.85,8.58]
[1765909902924,10.43767296,127.91,127.85,8.58]
[1765909903128,0.71,127.89,127.85,27.74905405]
[1765909903440,0.71,127.89,127.85,36.65567905]
[1765909903747,0.71,127.89,127.86,8.80994492]
[1765909904245,0.71,127.89,127.87,8.58]
[1765909904554,0.71,127.88,127.87,8.58]
[1765909905324,8.52983109,127.88,127.87,8.58]
[1765909906159,0.71,127.88,127.87,8.58]
[1765909906547,18.46639894,127.9,127.87,8.58]
[1765909906737,7.81885891,127.9,127.87,8.58]
[1765909906933,0.71,127.89,127.87,8.58]
[1765909907258,18.96592802,127.91,127.88,0.7]
[1765909907831,0.71,127.9,127.87,8.58]
[1765909908259,0.71,127.9,127.86,19.16829532]
[1765909908464,0.71,127.9,127.88,8.58]
[1765909908630,0.71,127.88,127.84,19.45748495]
[1765909908834,0.71,127.88,127.85,8.58]
[1765909909035,0.71,127.88,127.85,17.1013484]
[1765909909569,0.71,127.87,127.86,8.58]
[1765909910054,8.52993793,127.88,127.86,8.58]
[1765909910255,8.52993793,127.88,127.84,27.97940958]
[1765909910458,8.52993793,127.88,127.85,8.58]
[1765909910639,0.71,127.87,127.85,8.58]
[1765909910838,0.71,127.87,127.85,16.40155281]
[1765909911055,8.52993793,127.88,127.85,17.10155281]
[1765909911250,0.71,127.88,127.85,27.74909284]
[1765909911452,0.71,127.89,127.86,0.7]
[1765909911665,8.52875729,127.9,127.86,10.64754003]
[1765909911869,0.71,127.89,127.86,11.34754003]
[1765909912652,7.81950802,127.89,127.82,10.43767296]
[1765909912855,0.71,127.88,127.85,7.82166493]
[1765909913162,0.71,127.88,127.86,8.58]
[1765909913354,8.52950802,127.89,127.86,8.58]
[1765909913939,7.81889593,127.9,127.86,17.10103372]
[1765909914139,0.71,127.89,127.86,17.10103372]
[1765909915154,7.81889593,127.9,127.86,27.74857375]
[1765909915468,0.71,127.89,127.86,27.74857375]
[1765909915662,0.71,127.89,127.86,17.10103372]
[1765909916241,8.52889593,127.9,127.86,17.10103372]
[1765909916440,8.52889593,127.9,127.86,27.74857375]
[1765909917352,8.52889593,127.9,127.86,17.10103372]
[1765909917547,7.81889593,127.9,127.87,8.58]
[1765909917750,0.71,127.89,127.87,8.58]
[1765909918269,10.64754003,127.89,127.84,9.50994492]
[1765909918568,0.71,127.88,127.85,16.40132203]
[1765909918748,10.64754003,127.86,127.82,0.7]
[1765909918954,0.71,127.84,127.83,8.58]
[1765909919148,10.64754003,127.84,127.8,8.52442138]
[1765909919376,0.71,127.83,127.81,8.58]
[1765909919742,19.18042869,127.84,127.81,8.58]
[1765909920245,0.71,127.84,127.81,17.10405776]
[1765909920443,0.71,127.88,127.83,10.64754003]
[1765909920678,11.35754003,127.88,127.85,0.7]
[1765909920962,0.71,127.88,127.85,0.7]
[1765909921161,18.46675967,127.89,127.85,0.7]
[1765909921369,8.52921964,127.89,127.85,11.34754003]
[1765909921541,0.71,127.88,127.85,18.46906118]
[1765909921741,8.52921964,127.89,127.85,19.16906118]
[1765909921970,8.52921964,127.89,127.85,8.52152115]
[1765909922175,7.81921964,127.89,127.85,18.46906118]
[1765909922343,8.52921964,127.89,127.85,19.16906118]
[1765909922544,0.71,127.89,127.86,0.7]
[1765909922848,0.71,127.89,127.87,8.58]
[1765909923248,0.71,127.88,127.87,8.58]
[1765909923442,0.71,127.88,127.84,11.34754003]
[1765909923638,8.53006397,127.88,127.85,8.58]
[1765909923847,0.67,127.87,127.84,7.82184578]
[1765909924052,0.67,127.87,127.86,8.58]
[1765909924250,0.67,127.86,127.82,17.31284504]
[1765909924578,27.36964169,127.88,127.75,23.10958355]
[1765909924579,10.64754003,127.83,127.75,23.10958355]
[1765909924750,27.36964169,127.88,127.77,10.64754003]
[1765909924751,0.67,127.81,127.77,10.64754003]
[1765909924950,0.67,127.81,127.78,0.68]
[1765909925152,0.67,127.82,127.79,9.26]
[1765909925352,0.67,127.82,127.8,8.58]
[1765909925677,27.37154922,127.87,127.82,8.50350179]
[1765909925860,0.67,127.85,127.83,8.58]
[1765909926770,11.31754003,127.86,127.83,8.58]
[1765909926970,0.67,127.85,127.83,8.58]
[1765909927469,11.31754003,127.86,127.82,8.50350179]
[1765909927771,11.31754003,127.85,127.84,8.58]
[1765909928079,0.67,127.84,127.8,11.32754003]
[1765909928277,0.67,127.85,127.81,16.40356832]
[1765909928481,0.67,127.85,127.82,8.58]
[1765909928787,0.67,127.84,127.83,8.58]
[1765909929161,0.67,127.83,127.8,7.82472613]
[1765909929360,0.67,127.83,127.81,8.58]
[1765909929761,27.37382418,127.86,127.82,8.50350179]
[1765909929762,11.31754003,127.86,127.82,8.50350179]
[1765909929963,0.67,127.88,127.84,0.68]
[1765909930175,0.67,127.88,127.85,8.58]
[1765909930382,0.67,127.88,127.85,9.26]
[1765909930576,19.13717019,127.89,127.85,9.26]
[1765909930775,0.67,127.89,127.85,19.22754003]
[1765909930982,0.67,127.89,127.86,0.68]
[1765909931191,0.67,127.89,127.85,19.90754003]
[1765909931584,0.67,127.87,127.86,8.58]
[1765909932396,8.49013033,127.88,127.86,8.58]
[1765909934091,0.67,127.88,127.86,8.58]
[1765909934292,8.48983678,127.88,127.86,8.58]
[1765909934500,0.67,127.87,127.86,8.58]
[1765909935998,8.49044263,127.87,127.86,8.58]
[1765909936384,19.13798266,127.87,127.86,8.58]
[1765909936887,8.49044263,127.87,127.84,7.82219556]
[1765909937089,8.49044263,127.87,127.85,8.58]
[1765909937294,0.67,127.87,127.85,8.58]
[1765909938078,0.67,127.87,127.85,16.40163193]
[1765909940374,0.67,127.91,127.87,0.68]
[1765909940700,0.67,127.91,127.88,9.26]
[1765909941103,0.67,127.91,127.88,8.58]
[1765909941295,11.31754003,127.91,127.88,9.26]
[1765909941600,19.13600816,127.91,127.88,16.39979787]
[1765909941782,19.13600816,127.91,127.88,8.58]
[1765909941980,19.13177712,127.91,127.88,8.58]
[1765909942178,38.00676969,127.91,127.84,28.36561077]
[1765909942385,0.67,127.88,127.85,16.40135546]
[1765909942611,0.67,127.87,127.85,8.58]
[1765909942807,0.67,127.86,127.83,8.5025837]
[1765909942989,0.67,127.88,127.85,0.68]
[1765909943191,7.81682222,127.93,127.88,0.68]
[1765909943402,0.67,127.94,127.91,7.81799702]
[1765909943602,19.12957533,127.94,127.92,8.58]
[1765909943802,8.48626634,127.94,127.92,8.58]
[1765909943980,10.64330899,127.96,127.93,0.68]
[1765909944183,10.64330899,127.96,127.92,8.58]
[1765909944184,0.67,127.95,127.92,9.26]
[1765909944590,7.81005935,128.04,127.95,0.68]
[1765909944787,0.67,127.99,127.96,8.58]
[1765909945108,7.81005935,128.04,127.92,0.68]
[1765909945109,11.31330899,127.98,127.92,0.68]
[1765909945311,0.67,127.97,127.94,0.68]
[1765909945912,18.12733069,127.98,127.94,0.68]
[1765909946077,7.4840217,127.98,127.94,0.68]
[1765909946288,10.64330899,127.96,127.95,8.58]
[1765909946793,7.4840217,127.98,127.95,8.58]
[1765909946996,10.64330899,127.97,127.95,8.58]
[1765909947193,10.64330899,127.97,127.92,0.68]
[1765909947405,10.64330899,127.96,127.93,8.58]
[1765909947600,10.64330899,127.96,127.93,9.26]
[1765909947804,10.64330899,127.97,127.94,0.68]
[1765909948009,8.48387323,127.98,127.94,0.68]
[1765909948887,11.31330899,127.97,127.93,0.68]
[1765909949103,11.31330899,127.97,127.94,8.58]
[1765909949413,8.48474083,127.97,127.94,8.58]
[1765909949711,19.12804982,127.97,127.94,9.26]
[1765909949915,19.12804982,127.97,127.94,8.58]
[1765909950707,7.81474083,127.97,127.94,19.90330899]
[1765909950910,7.81474083,127.97,127.94,9.26]
[1765909951115,8.48474083,127.97,127.94,9.26]
[1765909951311,19.12749652,127.98,127.94,17.07612684]
[1765909951912,19.12749652,127.98,127.94,9.26]
[1765909952114,11.31330899,127.96,127.92,0.68]
[1765909952425,27.34848976,127.98,127.93,8.58]
[1765909952610,0.67,127.96,127.93,8.58]
[1765909953716,0.67,127.96,127.89,20.14325391]
[1765909953717,0.71,127.93,127.89,20.14325391]
[1765909953918,0.71,127.93,127.9,9.25]
[1765909954228,0.71,127.95,127.91,8.56]
[1765909954441,10.64330899,127.94,127.91,16.377869]
[1765909954763,28.06284237,127.96,127.92,0.69]
[1765909954896,37.99615136,127.96,127.92,0.69]
[1765909955097,10.64330899,127.95,127.92,0.69]
[1765909955614,18.45888622,127.95,127.92,0.69]
[1765909955820,10.43767296,127.98,127.93,0.67]
[1765909955821,0.69,127.97,127.93,0.67]
[1765909956032,11.33330899,127.96,127.94,8.56]
[1765909957047,19.14866987,127.96,127.94,8.56]
[1765909957551,10.64330899,127.95,127.93,8.56]
[1765909957716,0.69,127.95,127.93,8.56]
[1765909958214,10.64330899,127.95,127.93,8.56]
[1765909958956,11.33330899,127.95,127.92,8.56]
[1765909959248,7.81616382,127.94,127.92,9.23]
[1765909959451,7.81534552,127.96,127.93,0.67]
[1765909959627,0.69,128.02,127.95,0.67]
[1765909959828,11.33330899,127.99,127.96,8.56]
[1765909960231,11.33330899,127.99,127.96,9.23]
[1765909960540,11.33330899,127.99,127.96,8.56]
[1765909960744,8.50361393,127.99,127.96,8.56]
[1765909960929,10.64330899,127.98,127.96,8.56]
[1765909961533,6.54221544,127.98,127.96,9.23]
[1765909961844,7.8125,128.0,127.97,0.67]
[1765909962051,7.8125,128.0,127.98,0.67]
[1765909962421,7.8125,128.0,127.99,8.56]
[1765909962621,7.81192465,128.01,127.99,9.23]
[1765909962845,8.50063526,128.04,127.99,16.3726121]
[1765909963047,7.81063526,128.04,128.01,0.67]
[1765909963233,7.81063526,128.04,128.02,8.56]
[1765909963432,0.1,128.05,128.03,0.67]
[1765909964443,0.1,128.05,128.02,9.23]
[1765909964648,0.1,128.05,128.03,8.56]
[1765909964820,0.1,128.05,128.02,0.67]
[1765909965016,0.1,128.05,128.03,8.56]
[1765909965553,0.1,128.05,128.03,9.23]
[1765909965722,0.1,128.05,128.01,0.67]
[1765909965723,6.64221544,128.05,128.01,0.67]
[1765909965922,6.64221544,128.05,128.02,9.23]
[1765909966630,6.64221544,128.05,127.99,19.24761788]
[1765909966631,14.35227479,128.04,128.03,8.56]
[1765909966931,15.04227479,128.04,128.03,8.56]
[1765909967144,33.87742318,128.04,128.0,0.67]
[1765909967355,6.54221544,128.03,128.01,8.56]
[1765909967658,6.54221544,128.03,128.0,0.67]
[1765909967837,6.54221544,128.03,127.99,8.80994492]
[1765909967838,0.69,128.0,127.96,0.67]
[1765909968032,6.54221544,127.99,127.96,0.67]
[1765909968228,6.54221544,127.97,127.95,8.56]
[1765909968439,6.54221544,127.98,127.95,8.56]
[1765909968635,7.23221544,127.98,127.95,8.56]
[1765909968960,6.54221544,127.96,127.95,8.56]
[1765909969566,14.35654692,127.97,127.93,0.67]
[1765909969858,6.54221544,127.96,127.94,8.56]
[1765909970355,6.54221544,127.95,127.91,0.67]
[1765909970562,6.54221544,127.95,127.94,8.56]
[1765909970763,14.35776839,127.95,127.94,8.56]
[1765909971559,14.35776839,127.95,127.91,0.67]
[1765909971760,6.54221544,127.94,127.92,8.56]
[1765909972273,28.04443532,127.95,127.92,8.56]